[Event "TUR-ch Youth U14 2019"]
[Site "Belek"]
[Date "2019.01.22"]
[Round "4"]
[White "Hoser, Buse"]
[Black "Bese, Irem"]
[Result "*"]
[ECO "C14"]
[WhiteElo "1317"]
[BlackElo "1534"]
[Annotator "NA RC"]
[PlyCount "87"]
[EventDate "2019.01.20"]
[EventType "swiss"]
[EventCountry "TUR"]
[SourceTitle "playchess.com"]
[Source "ChessBase"]
[SourceQuality "1"]
[TimeControl "5400+30"]

1. e4 e6 2. d4 d5 3. Nc3 Nf6 4. Bg5 Be7 5. e5 Nfd7 6. Bxe7 Qxe7 7. f4 a6 8. Nf3 c5 9. Qd2 Nc6 10. dxc5 Qxc5 11. O-O-O O-O 12. Bd3 Nb4 13. Kb1 b5 14. Ne2 f6 15. Rhe1 Nb6 16. exf6 {[%emt 1:04:00]} gxf6 {[%emt 1:02:00]} 17. Ned4 {[%emt 0:18:59]} Nxd3 {[%emt 0:11:30]} 18. Qxd3 {[%emt 0:01:09]} Re8 {[%emt 0:00:30]} 19. Nb3 {[%emt 0:02:18]} Qc4 {[%emt 0:06:18]} 20. Qxc4 {[%emt 0:02:57]} bxc4 {[%emt 0:00:58]} 21. Nbd4 {[%emt 0:00:56]} Rb8 {[%emt 0:01:06]} 22. b3 {[%emt 0:02:23]} Bd7 {[%emt 0:06:17]} 23. g4 {[%emt 0:03:04]} Na4 {[%emt 0:04:38]} 24. Re3 {[%emt 0:01:37]} Nc5 {[%emt 0:01:11]} 25. Rg1 {[%emt 0:00:59]} Ne4 {[%emt 0:02:08]} 26. g5 {[%emt 0:00:43]} fxg5 {[%emt 0:01:08]} 27. Nxg5 {[%emt 0:00:26]} Nxg5 {[%emt 0:01:01]} 28. Rxg5+ {[%emt 0:00:21]} Kf7 {[%emt 0:00:41]} 29. Rh3 {[%emt 0:01:07]} Rh8 {[%emt 0:00:36]} 30. Rgh5 {[%emt 0:01:45]} Kg7 {[%emt 0:02:02]} 31. Nf3 {[%emt 0:01:20]} Be8 {[%emt 0:01:08]} 32. Rg5+ {[%emt 0:00:49]} Bg6 {[%emt 0:01:46]} 33. Ne5 {[%emt 0:00:18]} Rhg8 {[%emt 0:00:14]} 34. Rhg3 {[%emt 0:00:21]} cxb3 {[%emt 0:00:55]} 35. axb3 {[%emt 0:00:11]} Kh6 {[%emt 0:00:00]} 36. Nf7+ {[%emt 0:00:20]} Kg7 {[%emt 0:00:30]} 37. Ne5 {[%emt 0:01:07]} Kh6 {[%emt 0:00:08]} 38. h4 {[%emt 0:00:40]} Rbf8 {[%emt 0:00:34]} 39. h5 {[%emt 0:00:34]} Bxc2+ {[%emt 0:00:26]} 40. Kxc2 {[%emt 0:00:42]} Rxg5 {[%emt 0:00:04]} 41. fxg5+ {[%emt 0:01:10]} Kg7 {[%emt 0:00:30]} 42. h6+ {[%emt 0:00:00]} Kg8 {[%emt 0:00:00]} 43. g6 {[%emt 0:00:48]} hxg6 {[%emt 0:00:00]} 44. Rxg6+ {[%emt 0:00:00]} *

[Event "TUR-ch Youth U14 2019"]
[Site "Belek"]
[Date "2019.01.22"]
[Round "5"]
[White "Danaci, Ege"]
[Black "Bozyaka, Altug"]
[Result "0-1"]
[ECO "B25"]
[WhiteElo "2143"]
[BlackElo "1600"]
[Annotator "NA"]
[PlyCount "88"]
[EventDate "2019.01.20"]
[EventType "swiss"]
[EventCountry "TUR"]
[SourceTitle "playchess.com"]
[Source "ChessBase"]
[SourceQuality "1"]
[TimeControl "5400+30"]

1. e4 {[%emt 0:00:30]} c5 {[%emt 0:00:30]} 2. Nc3 {[%emt 0:03:30]} d6 {[%emt 0:01:30]} 3. g3 {[%emt 0:00:00]} Nc6 {[%emt 0:00:30]} 4. Bg2 {[%emt 0:01:00]} g6 {[%emt 0:00:30]} 5. d3 {[%emt 0:00:30]} Bg7 {[%emt 0:00:30]} 6. f4 {[%emt 0:00:00]} e6 {[%emt 0:03:30]} 7. Nf3 {[%emt 0:00:00]} Nge7 {[%emt 0:00:30]} 8. O-O {[%emt 0:00:00]} O-O {[%emt 0:02:30]} 9. Be3 {[%emt 0:00:00]} Nd4 {[%emt 0:01:30]} 10. e5 {[%emt 0:02:30]} Bd7 {[%emt 0:03:30]} 11. exd6 {[%emt 0:05:30]} Nef5 {[%emt 0:04:30]} 12. Bf2 {[%emt 0:00:00]} Nxd6 {[%emt 0:11:30]} 13. Ne5 {[%emt 0:01:00]} Qc7 {[%emt 0:10:30]} 14. Nxd7 {[%emt 0:07:30]} Qxd7 {[%emt 0:00:30]} 15. Ne4 {[%emt 0:00:30]} Nxe4 {[%emt 0:09:30]} 16. dxe4 {[%emt 0:00:30]} Qe7 {[%emt 0:05:30]} 17. c3 {[%emt 0:03:30]} Nc6 {[%emt 0:01:30]} 18. e5 {[%emt 0:00:30]} Rfd8 {[%emt 0:06:30]} 19. Qe2 {[%emt 0:00:30]} Rac8 {[%emt 0:01:30]} 20. Rad1 {[%emt 0:07:30]} Bf8 {[%emt 0:02:30]} 21. Bxc6 {[%emt 0:05:30]} Rxc6 {[%emt 0:02:30]} 22. Rxd8 {[%emt 0:00:30]} Qxd8 {[%emt 0:00:30]} 23. Rd1 {[%emt 0:00:00]} Qa5 {[%emt 0:08:30]} 24. Rd7 {[%emt 0:03:00]} Qxa2 {[%emt 0:02:00]} 25. Rd8 {[%emt 0:03:30]} Kg7 {[%emt 0:06:48]} 26. g4 {[%emt 0:00:30]} Qa5 {[%emt 0:03:09]} 27. Qd2 {[%emt 0:00:30]} Be7 {[%emt 0:02:43]} 28. Re8 {[%emt 0:07:30]} Rc7 {[%emt 0:02:16]} 29. f5 {[%emt 0:02:30]} exf5 {[%emt 0:01:59]} 30. Be3 {[%emt 0:02:30]} f6 {[%emt 0:01:30]} 31. Qd5 {[%emt 0:05:30]} Qa1+ {[%emt 0:01:15]} 32. Kg2 {[%emt 0:00:30]} Qxb2+ {[%emt 0:00:59]} 33. Bd2 {[%emt 0:00:00]} f4 {[%emt 0:01:38]} 34. exf6+ {[%emt 0:02:00]} Bxf6 {[%emt 0:00:51]} 35. Rg8+ {[%emt 0:00:30]} Kh6 {[%emt 0:00:07]} 36. Qd6 {[%emt 0:00:30]} Rf7 {[%emt 0:01:34]} 37. h4 {[%emt 0:02:30]} Bxh4 {[%emt 0:00:35]} 38. Kf3 {[%emt 0:03:30]} Bg5 {[%emt 0:00:25]} 39. Rf8 {[%emt 0:00:30]} Qb3 {[%emt 0:00:36]} 40. Rg8 {[%emt 0:03:30]} Qd1+ {[%emt 0:00:14]} 41. Kf2 {[%emt 0:01:30]} Bh4+ {[%emt 0:00:20]} 42. Kg2 {[%emt 0:00:30]} Qxg4+ {[%emt 0:00:48]} 43. Kf1 {[%emt 0:00:30]} Qf3+ {[%emt 0:00:45]} 44. Kg1 {[%emt 0:00:30]} Bf2+ {[%emt 0:00:00]} 0-1

[Event "TUR-ch Youth U14 2019"]
[Site "Belek"]
[Date "2019.01.22"]
[Round "5"]
[White "Caberoglu, Arda"]
[Black "Hatirli, Ugur Can"]
[Result "1/2-1/2"]
[ECO "B40"]
[WhiteElo "1962"]
[BlackElo "1713"]
[Annotator "NA"]
[PlyCount "70"]
[EventDate "2019.01.20"]
[EventType "swiss"]
[EventCountry "TUR"]
[SourceTitle "playchess.com"]
[Source "ChessBase"]
[SourceQuality "1"]
[TimeControl "5400+30"]

1. e4 {[%emt 0:00:30]} c5 {[%emt 0:00:30]} 2. Nf3 {[%emt 0:00:00]} e6 {[%emt 0:00:00]} 3. b3 {[%emt 0:00:00]} b6 {[%emt 0:00:00]} 4. Bb2 {[%emt 0:03:30]} Bb7 {[%emt 0:00:30]} 5. d3 {[%emt 0:00:00]} Nf6 {[%emt 0:00:00]} 6. Nbd2 {[%emt 0:01:00]} Be7 {[%emt 0:02:00]} 7. g3 {[%emt 0:00:30]} O-O {[%emt 0:00:00]} 8. Bg2 {[%emt 0:00:30]} d5 {[%emt 0:01:00]} 9. Qe2 {[%emt 0:01:30]} dxe4 {[%emt 0:01:30]} 10. dxe4 {[%emt 0:00:30]} Nc6 {[%emt 0:00:30]} 11. O-O {[%emt 0:06:30]} Qc7 {[%emt 0:02:30]} 12. Rfd1 {[%emt 0:03:30]} Rfd8 {[%emt 0:03:30]} 13. Nc4 {[%emt 0:04:30]} Ba6 {[%emt 0:00:00]} 14. Qe3 {[%emt 0:02:30]} Bxc4 {[%emt 0:00:00]} 15. bxc4 {[%emt 0:00:00]} Ng4 {[%emt 0:01:30]} 16. Qe2 {[%emt 0:05:00]} Nge5 {[%emt 0:03:30]} 17. Nxe5 {[%emt 0:02:30]} Nxe5 {[%emt 0:00:30]} 18. f4 {[%emt 0:01:30]} Nc6 {[%emt 0:01:30]} 19. e5 {[%emt 0:09:30]} Rac8 {[%emt 0:00:30]} 20. Kh1 {[%emt 0:04:30]} g6 {[%emt 0:05:30]} 21. Qe4 {[%emt 0:04:30]} Rxd1+ {[%emt 0:10:30]} 22. Rxd1 {[%emt 0:00:30]} Rd8 {[%emt 0:00:30]} 23. Rxd8+ {[%emt 0:12:30]} Qxd8 {[%emt 0:00:30]} 24. Qe2 {[%emt 0:00:30]} Nd4 {[%emt 0:02:30]} 25. Qd3 {[%emt 0:00:30]} Nf5 {[%emt 0:00:30]} 26. Kg1 {[%emt 0:04:30]} Qxd3 {[%emt 0:01:30]} 27. cxd3 {[%emt 0:00:30]} Ne3 {[%emt 0:01:30]} 28. Be4 {[%emt 0:02:30]} Kf8 {[%emt 0:02:30]} 29. Ba1 {[%emt 0:04:30]} h5 {[%emt 0:03:30]} 30. h3 {[%emt 0:01:30]} g5 {[%emt 0:02:30]} 31. Kf2 {[%emt 0:03:30]} Nc2 {[%emt 0:01:30]} 32. Bc3 {[%emt 0:02:30]} gxf4 {[%emt 0:04:30]} 33. gxf4 {[%emt 0:00:30]} Bh4+ {[%emt 0:01:30]} 34. Kf3 {[%emt 0:01:24]} Kg7 {[%emt 0:03:30]} 35. Bb7 {[%emt 0:05:50]} a5 {[%emt 0:02:30]} 1/2-1/2

[Event "TUR-ch Youth U14 2019"]
[Site "Belek"]
[Date "2019.01.22"]
[Round "5"]
[White "Kara, Gulce Nehir"]
[Black "Yaman, Sila"]
[Result "1-0"]
[ECO "B11"]
[WhiteElo "1702"]
[BlackElo "1405"]
[Annotator "NA"]
[PlyCount "77"]
[EventDate "2019.01.20"]
[EventType "swiss"]
[EventCountry "TUR"]
[SourceTitle "playchess.com"]
[Source "ChessBase"]
[SourceQuality "1"]
[TimeControl "5400+30"]

1. e4 {[%emt 0:01:30]} c6 {[%emt 0:00:30]} 2. Nc3 {[%emt 0:00:30]} d5 {[%emt 0:00:30]} 3. Qe2 {[%emt 0:00:00]} d4 {[%emt 0:01:30]} 4. Nd1 {[%emt 0:00:00]} e5 {[%emt 0:00:30]} 5. d3 {[%emt 0:00:30]} Nf6 {[%emt 0:00:30]} 6. g3 {[%emt 0:00:30]} Be7 {[%emt 0:03:30]} 7. Bg2 {[%emt 0:00:30]} Be6 {[%emt 0:02:30]} 8. f4 {[%emt 0:00:30]} exf4 {[%emt 0:00:30]} 9. gxf4 {[%emt 0:00:30]} Na6 {[%emt 0:07:30]} 10. f5 {[%emt 0:09:30]} Bd7 {[%emt 0:03:30]} 11. Nf3 {[%emt 0:07:30]} Qb6 {[%emt 0:08:30]} 12. O-O {[%emt 0:10:30]} O-O {[%emt 0:04:30]} 13. Kh1 {[%emt 0:14:30]} Rfe8 {[%emt 0:05:30]} 14. Qf2 {[%emt 0:05:30]} c5 {[%emt 0:07:30]} 15. Rg1 {[%emt 0:06:30]} Ng4 {[%emt 0:09:30]} 16. Qg3 {[%emt 0:01:30]} h5 {[%emt 0:01:30]} 17. h3 {[%emt 0:04:30]} Bd6 {[%emt 0:01:30]} 18. Qh4 {[%emt 0:01:30]} Nf6 {[%emt 0:02:30]} 19. Bg5 {[%emt 0:04:30]} Be7 {[%emt 0:03:30]} 20. Bxf6 {[%emt 0:12:19]} Qxf6 {[%emt 0:01:30]} 21. Qxh5 {[%emt 0:01:17]} Nb4 {[%emt 0:00:30]} 22. Ne1 {[%emt 0:03:25]} Bd6 {[%emt 0:02:30]} 23. Nf2 {[%emt 0:00:36]} Bg3 {[%emt 0:04:30]} 24. Ng4 {[%emt 0:00:57]} Qh4 {[%emt 0:02:30]} 25. Qxh4 {[%emt 0:00:42]} Bxh4 {[%emt 0:00:30]} 26. Nf3 {[%emt 0:00:22]} Be7 {[%emt 0:00:30]} 27. Nge5 {[%emt 0:01:49]} Rad8 {[%emt 0:01:30]} 28. c3 {[%emt 0:02:10]} Nc6 {[%emt 0:01:30]} 29. c4 {[%emt 0:03:02]} Nxe5 {[%emt 0:01:30]} 30. Nxe5 {[%emt 0:00:02]} Bd6 {[%emt 0:01:30]} 31. Ng4 {[%emt 0:00:39]} Be5 {[%emt 0:03:34]} 32. Bf3 {[%emt 0:00:50]} f6 {[%emt 0:01:37]} 33. Rg2 {[%emt 0:01:02]} Kf7 {[%emt 0:01:29]} 34. Rag1 {[%emt 0:05:31]} Rg8 {[%emt 0:01:41]} 35. Nh6+ {[%emt 0:00:52]} gxh6 {[%emt 0:02:14]} 36. Bh5+ {[%emt 0:00:04]} Ke7 {[%emt 0:00:00]} 37. Rxg8 {[%emt 0:00:35]} Rxg8 {[%emt 0:00:28]} 38. Rxg8 {[%emt 0:00:00]} Bf4 {[%emt 0:01:21]} 39. Kg2 {[%emt 0:00:00]} 1-0

[Event "TUR-ch Youth U14 2019"]
[Site "Belek"]
[Date "2019.01.22"]
[Round "5"]
[White "Tikvesli, Ceylin"]
[Black "Hoser, Buse"]
[Result "1-0"]
[ECO "B38"]
[WhiteElo "1677"]
[BlackElo "1317"]
[Annotator "NA"]
[PlyCount "123"]
[EventDate "2019.01.20"]
[EventType "swiss"]
[EventCountry "TUR"]
[SourceTitle "playchess.com"]
[Source "ChessBase"]
[SourceQuality "1"]
[TimeControl "5400+30"]

1. e4 {[%emt 0:00:30]} c5 {[%emt 0:01:30]} 2. Nf3 {[%emt 0:00:30]} g6 {[%emt 0:00:30]} 3. d4 {[%emt 0:00:00]} cxd4 {[%emt 0:00:00]} 4. Nxd4 {[%emt 0:00:00]} Bg7 {[%emt 0:00:00]} 5. c4 {[%emt 0:00:00]} Nc6 {[%emt 0:01:30]} 6. Be3 {[%emt 0:00:00]} Nf6 {[%emt 0:00:30]} 7. Nc3 {[%emt 0:00:00]} O-O {[%emt 0:00:30]} 8. Be2 {[%emt 0:00:00]} d6 {[%emt 0:00:00]} 9. O-O {[%emt 0:00:30]} Bd7 {[%emt 0:01:00]} 10. Qd2 {[%emt 0:00:30]} Nxd4 {[%emt 0:00:30]} 11. Bxd4 {[%emt 0:00:30]} Bc6 {[%emt 0:00:30]} 12. f3 {[%emt 0:00:30]} Nd7 {[%emt 0:03:30]} 13. Be3 {[%emt 0:00:00]} a5 {[%emt 0:05:30]} 14. b3 {[%emt 0:01:00]} Nc5 {[%emt 0:00:30]} 15. Rab1 {[%emt 0:02:30]} Qd7 {[%emt 0:14:30]} 16. a3 {[%emt 0:03:30]} Rfc8 {[%emt 0:08:30]} 17. b4 {[%emt 0:12:30]} axb4 {[%emt 0:01:30]} 18. axb4 {[%emt 0:00:30]} Na4 {[%emt 0:15:30]} 19. Nxa4 {[%emt 0:05:30]} Bxa4 {[%emt 0:06:30]} 20. Bb6 {[%emt 0:10:30]} Qc6 {[%emt 0:10:30]} 21. c5 {[%emt 0:05:30]} Bb5 {[%emt 0:01:30]} 22. Rfd1 {[%emt 0:06:30]} Bxe2 {[%emt 0:04:30]} 23. Qxe2 {[%emt 0:00:00]} dxc5 {[%emt 0:01:30]} 24. bxc5 {[%emt 0:01:00]} Ra4 {[%emt 0:00:30]} 25. e5 {[%emt 0:03:30]} Qe6 {[%emt 0:06:58]} 26. Re1 {[%emt 0:01:30]} Ra2 {[%emt 0:01:46]} 27. Qe3 {[%emt 0:03:30]} Rca8 {[%emt 0:01:18]} 28. Rbd1 {[%emt 0:04:30]} R2a3 {[%emt 0:07:46]} 29. Qd4 {[%emt 0:02:30]} Qc6 {[%emt 0:04:22]} 30. Qd7 {[%emt 0:09:30]} Kf8 {[%emt 0:00:45]} 31. Qh3 {[%emt 0:08:30]} h5 {[%emt 0:00:40]} 32. Rd7 {[%emt 0:01:04]} Re8 {[%emt 0:00:43]} 33. e6 {[%emt 0:08:10]} Ra1 {[%emt 0:00:15]} 34. Rxa1 {[%emt 0:01:09]} Bxa1 {[%emt 0:00:06]} 35. exf7 {[%emt 0:01:24]} Kxf7 {[%emt 0:00:13]} 36. Rd1 {[%emt 0:01:25]} Qa4 {[%emt 0:00:25]} 37. Qd7 {[%emt 0:00:20]} Qa3 {[%emt 0:01:15]} 38. Qd5+ {[%emt 0:00:52]} Kf8 {[%emt 0:00:22]} 39. Kf2 {[%emt 0:06:53]} Qa6 {[%emt 0:00:55]} 40. Qe6 {[%emt 0:00:58]} Bf6 {[%emt 0:00:24]} 41. g3 {[%emt 0:01:04]} Qa4 {[%emt 0:00:26]} 42. Qd5 {[%emt 0:00:37]} Qc2+ {[%emt 0:00:38]} 43. Rd2 {[%emt 0:00:50]} Qc3 {[%emt 0:00:13]} 44. Qd3 {[%emt 0:00:04]} Qb4 {[%emt 0:00:31]} 45. f4 {[%emt 0:00:31]} Kg7 {[%emt 0:00:00]} 46. Kf3 {[%emt 0:00:20]} Qa4 {[%emt 0:01:11]} 47. Re2 {[%emt 0:00:55]} Qc6+ {[%emt 0:00:04]} 48. Qe4 {[%emt 0:00:23]} Qd7 {[%emt 0:00:43]} 49. Kg2 {[%emt 0:00:48]} Qd1 {[%emt 0:00:50]} 50. Re1 {[%emt 0:00:28]} Qd2+ {[%emt 0:00:20]} 51. Kh3 {[%emt 0:00:49]} Qd7+ {[%emt 0:00:56]} 52. Qe6 {[%emt 0:00:30]} Qd3 {[%emt 0:00:30]} 53. Bc7 {[%emt 0:00:13]} Qc3 {[%emt 0:00:14]} 54. Bd6 {[%emt 0:00:50]} Qd4 {[%emt 0:00:36]} 55. Be5 {[%emt 0:00:35]} Bxe5 {[%emt 0:00:18]} 56. Rxe5 {[%emt 0:00:26]} Qd1 {[%emt 0:00:36]} 57. Rg5 {[%emt 0:00:40]} Qf1+ {[%emt 0:00:33]} 58. Kh4 {[%emt 0:00:30]} Qb1 {[%emt 0:00:10]} 59. f5 {[%emt 0:00:04]} Qb4+ {[%emt 0:00:47]} 60. g4 {[%emt 0:00:00]} Qd4 {[%emt 0:00:30]} 61. Qxg6+ {[%emt 0:00:00]} Kf8 {[%emt 0:00:13]} 62. Qg8# {[%emt 0:00:00]} 1-0

[Event "TUR-ch Youth U14 2019"]
[Site "Belek"]
[Date "2019.01.22"]
[Round "5"]
[White "Ozcan, Ilker"]
[Black "Ozsac, Samet Harun"]
[Result "1/2-1/2"]
[ECO "B38"]
[WhiteElo "1672"]
[BlackElo "1743"]
[Annotator "NA"]
[PlyCount "27"]
[EventDate "2019.01.20"]
[EventType "swiss"]
[EventCountry "TUR"]
[SourceTitle "playchess.com"]
[Source "ChessBase"]
[SourceQuality "1"]
[TimeControl "5400+30"]

1. e4 {[%emt 0:00:30]} c5 {[%emt 0:00:30]} 2. Nf3 {[%emt 0:00:00]} g6 {[%emt 0:00:00]} 3. c4 {[%emt 0:00:00]} Bg7 {[%emt 0:01:00]} 4. d4 {[%emt 0:00:30]} cxd4 {[%emt 0:02:30]} 5. Nxd4 {[%emt 0:00:30]} Nc6 {[%emt 0:00:30]} 6. Be3 {[%emt 0:00:30]} Nf6 {[%emt 0:00:30]} 7. Nc3 {[%emt 0:00:30]} d6 {[%emt 0:04:30]} 8. Be2 {[%emt 0:02:30]} O-O {[%emt 0:02:30]} 9. O-O {[%emt 0:01:30]} Nxd4 {[%emt 0:03:30]} 10. Bxd4 {[%emt 0:01:30]} Be6 {[%emt 0:05:30]} 11. f3 {[%emt 0:02:30]} Qa5 {[%emt 0:00:00]} 12. Qd2 {[%emt 0:01:30]} Rfc8 {[%emt 0:02:00]} 13. Rac1 {[%emt 0:00:30]} a6 {[%emt 0:00:30]} 14. b3 {[%emt 0:00:30]} 1/2-1/2

[Event "TUR-ch Youth U14 2019"]
[Site "Belek"]
[Date "2019.01.22"]
[Round "5"]
[White "Eraslan, Yagmur"]
[Black "Ince, Safiye Oyku"]
[Result "1/2-1/2"]
[ECO "B84"]
[WhiteElo "1567"]
[BlackElo "1870"]
[Annotator "NA"]
[PlyCount "85"]
[EventDate "2019.01.20"]
[EventType "swiss"]
[EventCountry "TUR"]
[SourceTitle "playchess.com"]
[Source "ChessBase"]
[SourceQuality "1"]
[TimeControl "5400+30"]

1. e4 {[%emt 0:01:30]} c5 {[%emt 0:00:30]} 2. Nf3 {[%emt 0:00:30]} e6 {[%emt 0:00:30]} 3. d4 {[%emt 0:00:30]} cxd4 {[%emt 0:00:00]} 4. Nxd4 {[%emt 0:00:00]} Nc6 {[%emt 0:00:00]} 5. Nc3 {[%emt 0:00:00]} Qc7 {[%emt 0:00:00]} 6. Be2 {[%emt 0:00:30]} a6 {[%emt 0:00:00]} 7. O-O {[%emt 0:00:00]} Nf6 {[%emt 0:00:30]} 8. Be3 {[%emt 0:03:00]} Be7 {[%emt 0:01:30]} 9. f4 {[%emt 0:05:30]} d6 {[%emt 0:00:30]} 10. Bf3 {[%emt 0:01:30]} Nxd4 {[%emt 0:02:30]} 11. Qxd4 {[%emt 0:03:30]} e5 {[%emt 0:00:30]} 12. Qd2 {[%emt 0:00:30]} Bd7 {[%emt 0:03:30]} 13. Rad1 {[%emt 0:04:30]} O-O {[%emt 0:01:30]} 14. Nd5 {[%emt 0:04:30]} Nxd5 {[%emt 0:02:30]} 15. exd5 {[%emt 0:00:30]} Bf6 {[%emt 0:02:30]} 16. fxe5 {[%emt 0:04:30]} Bxe5 {[%emt 0:00:30]} 17. c3 {[%emt 0:00:30]} Qc4 {[%emt 0:01:30]} 18. Be2 {[%emt 0:04:30]} Qh4 {[%emt 0:01:30]} 19. Bf4 {[%emt 0:00:30]} Rae8 {[%emt 0:00:30]} 20. Rf2 {[%emt 0:03:30]} f5 {[%emt 0:10:30]} 21. Rdf1 {[%emt 0:03:30]} Qe7 {[%emt 0:10:30]} 22. Bd3 {[%emt 0:06:30]} Bf6 {[%emt 0:04:30]} 23. Re2 {[%emt 0:03:30]} Qd8 {[%emt 0:00:30]} 24. Kh1 {[%emt 0:03:30]} Bc8 {[%emt 0:03:30]} 25. Be3 {[%emt 0:07:30]} g6 {[%emt 0:03:30]} 26. c4 {[%emt 0:05:30]} Be5 {[%emt 0:00:30]} 27. Bg5 {[%emt 0:01:30]} Qb6 {[%emt 0:01:30]} 28. b4 {[%emt 0:03:30]} Qd4 {[%emt 0:06:30]} 29. Rfe1 {[%emt 0:03:30]} Bd7 {[%emt 0:01:30]} 30. Qc2 {[%emt 0:05:30]} Qg4 {[%emt 0:04:30]} 31. Bd2 {[%emt 0:06:29]} Qh4 {[%emt 0:05:30]} 32. Rxe5 {[%emt 0:02:02]} Rxe5 {[%emt 0:01:30]} 33. Rxe5 {[%emt 0:01:34]} dxe5 {[%emt 0:00:30]} 34. c5 {[%emt 0:02:33]} Qf6 {[%emt 0:01:30]} 35. a4 {[%emt 0:01:23]} f4 {[%emt 0:05:30]} 36. Be4 {[%emt 0:02:24]} Bg4 {[%emt 0:00:30]} 37. Qd3 {[%emt 0:01:53]} Bf5 {[%emt 0:01:30]} 38. d6 {[%emt 0:01:56]} Bxe4 {[%emt 0:02:30]} 39. Qxe4 {[%emt 0:00:30]} Qf5 {[%emt 0:00:00]} 40. Qxf5 {[%emt 0:01:47]} gxf5 {[%emt 0:00:00]} 41. b5 {[%emt 0:00:18]} axb5 {[%emt 0:00:30]} 42. axb5 {[%emt 0:00:30]} Kf7 {[%emt 0:00:00]} 43. c6 {[%emt 0:00:57]} 1/2-1/2

[Event "TUR-ch Youth U14 2019"]
[Site "Belek"]
[Date "2019.01.22"]
[Round "5"]
[White "Genc, Ugur Can"]
[Black "Guler, Muhammed Talha"]
[Result "1-0"]
[ECO "C02"]
[WhiteElo "1532"]
[BlackElo "1816"]
[Annotator "NA"]
[PlyCount "59"]
[EventDate "2019.01.20"]
[EventType "swiss"]
[EventCountry "TUR"]
[SourceTitle "playchess.com"]
[Source "ChessBase"]
[SourceQuality "1"]
[TimeControl "5400+30"]

1. e4 {[%emt 0:02:30]} e6 {[%emt 0:00:30]} 2. d4 {[%emt 0:00:30]} d5 {[%emt 0:00:30]} 3. e5 {[%emt 0:00:00]} c5 {[%emt 0:00:00]} 4. c3 {[%emt 0:00:00]} Nc6 {[%emt 0:00:00]} 5. Nf3 {[%emt 0:00:30]} Bd7 {[%emt 0:00:00]} 6. a3 {[%emt 0:00:30]} Qb6 {[%emt 0:02:00]} 7. b4 {[%emt 0:00:30]} cxd4 {[%emt 0:00:30]} 8. cxd4 {[%emt 0:00:30]} Rc8 {[%emt 0:02:30]} 9. Be3 {[%emt 0:02:30]} Nge7 {[%emt 0:01:30]} 10. Bd3 {[%emt 0:04:30]} Nf5 {[%emt 0:01:30]} 11. O-O {[%emt 0:01:30]} h5 {[%emt 0:13:30]} 12. h3 {[%emt 0:08:30]} g6 {[%emt 0:05:30]} 13. Nbd2 {[%emt 0:04:30]} Bh6 {[%emt 0:03:30]} 14. Bxh6 {[%emt 0:18:30]} Rxh6 {[%emt 0:00:30]} 15. Bxf5 {[%emt 0:00:30]} gxf5 {[%emt 0:00:30]} 16. Nb3 {[%emt 0:00:30]} a5 {[%emt 0:04:30]} 17. bxa5 {[%emt 0:05:30]} Nxa5 {[%emt 0:00:30]} 18. Qd2 {[%emt 0:01:30]} Rg6 {[%emt 0:08:30]} 19. Nxa5 {[%emt 0:04:30]} Ra8 {[%emt 0:00:00]} 20. Nxb7 {[%emt 0:10:30]} Qxb7 {[%emt 0:00:00]} 21. Nh4 {[%emt 0:06:30]} Rg8 {[%emt 0:01:30]} 22. Qh6 {[%emt 0:03:30]} Qb3 {[%emt 0:02:30]} 23. Kh2 {[%emt 0:00:30]} Qb2 {[%emt 0:05:30]} 24. Nf3 {[%emt 0:05:16]} Bb5 {[%emt 0:04:30]} 25. Rab1 {[%emt 0:06:04]} Qe2 {[%emt 0:03:30]} 26. Ng5 {[%emt 0:01:19]} Bd3 {[%emt 0:11:30]} 27. Rb7 {[%emt 0:05:56]} Qd2 {[%emt 0:02:30]} 28. Qxh5 {[%emt 0:03:37]} Rf8 {[%emt 0:03:30]} 29. Nxe6 {[%emt 0:01:25]} Be2 {[%emt 0:01:30]} 30. Qh4 {[%emt 0:00:38]} 1-0

[Event "TUR-ch Youth U14 2019"]
[Site "Belek"]
[Date "2019.01.22"]
[Round "5"]
[White "Cengel, Edibe Eylul"]
[Black "Tokat, Nehir"]
[Result "0-1"]
[ECO "B38"]
[WhiteElo "1359"]
[BlackElo "1665"]
[Annotator "NA"]
[PlyCount "84"]
[EventDate "2019.01.20"]
[EventType "swiss"]
[EventCountry "TUR"]
[SourceTitle "playchess.com"]
[Source "ChessBase"]
[SourceQuality "1"]
[TimeControl "5400+30"]

1. e4 {[%emt 0:00:30]} c5 {[%emt 0:00:30]} 2. Nf3 {[%emt 0:00:30]} g6 {[%emt 0:00:00]} 3. d4 {[%emt 0:00:00]} cxd4 {[%emt 0:00:00]} 4. Nxd4 {[%emt 0:00:00]} Bg7 {[%emt 0:00:00]} 5. c4 {[%emt 0:01:30]} Nc6 {[%emt 0:00:00]} 6. Be3 {[%emt 0:00:30]} Nf6 {[%emt 0:00:30]} 7. Nc3 {[%emt 0:00:30]} O-O {[%emt 0:00:30]} 8. Be2 {[%emt 0:00:30]} d6 {[%emt 0:00:00]} 9. O-O {[%emt 0:01:30]} Bd7 {[%emt 0:05:00]} 10. Qd2 {[%emt 0:03:30]} Nxd4 {[%emt 0:00:00]} 11. Bxd4 {[%emt 0:00:30]} Bc6 {[%emt 0:00:00]} 12. f3 {[%emt 0:00:30]} a5 {[%emt 0:00:30]} 13. b3 {[%emt 0:00:30]} Nd7 {[%emt 0:00:00]} 14. Be3 {[%emt 0:02:30]} Nc5 {[%emt 0:00:00]} 15. Rab1 {[%emt 0:02:30]} Be5 {[%emt 0:01:30]} 16. Bd1 {[%emt 0:02:30]} e6 {[%emt 0:02:30]} 17. Bc2 {[%emt 0:04:30]} Qe7 {[%emt 0:09:30]} 18. Ne2 {[%emt 0:07:30]} Rfd8 {[%emt 0:06:30]} 19. Nd4 {[%emt 0:12:30]} d5 {[%emt 0:04:30]} 20. Qf2 {[%emt 0:03:30]} Bd6 {[%emt 0:15:30]} 21. Nxc6 {[%emt 0:01:30]} bxc6 {[%emt 0:06:30]} 22. e5 {[%emt 0:03:30]} Bxe5 {[%emt 0:04:30]} 23. Bxc5 {[%emt 0:00:30]} Qf6 {[%emt 0:00:30]} 24. f4 {[%emt 0:04:30]} Bc3 {[%emt 0:02:30]} 25. Rfd1 {[%emt 0:08:30]} d4 {[%emt 0:07:30]} 26. Rd3 {[%emt 0:15:30]} e5 {[%emt 0:07:30]} 27. fxe5 {[%emt 0:16:54]} Qxe5 {[%emt 0:00:30]} 28. Ba3 {[%emt 0:01:02]} c5 {[%emt 0:01:30]} 29. Bb2 {[%emt 0:01:53]} Bxb2 {[%emt 0:00:30]} 30. Rxb2 {[%emt 0:00:07]} Re8 {[%emt 0:00:30]} 31. Bd1 {[%emt 0:02:21]} Kg7 {[%emt 0:03:30]} 32. Re2 {[%emt 0:02:04]} Qg5 {[%emt 0:01:30]} 33. Rdd2 {[%emt 0:01:14]} Re3 {[%emt 0:01:30]} 34. Rb2 {[%emt 0:00:50]} Rae8 {[%emt 0:02:11]} 35. Rxe3 {[%emt 0:00:08]} dxe3 {[%emt 0:00:22]} 36. Qf3 {[%emt 0:00:31]} Qe5 {[%emt 0:00:46]} 37. Re2 {[%emt 0:01:17]} Qa1 {[%emt 0:00:11]} 38. Re1 {[%emt 0:00:00]} e2 {[%emt 0:01:00]} 39. Kf2 {[%emt 0:00:34]} Qd4+ {[%emt 0:00:47]} 40. Kg3 {[%emt 0:00:29]} g5 {[%emt 0:04:36]} 41. Qh5 {[%emt 0:00:29]} Re3+ {[%emt 0:00:42]} 42. Kf2 {[%emt 0:00:14]} Rh3+ {[%emt 0:01:03]} 0-1